[Event "CCT Julius Baer-D1-Place 2024"]
[Site "Online"]
[Date "2024.09.26"]
[Round "1"]
[White "Carlsen, Magnus"]
[Black "Le, Tuan Minh"]
[Result "1-0"]
[ECO "C24"]
[WhiteElo "2832"]
[BlackElo "2564"]
[Annotator "TA"]
[PlyCount "185"]
[EventDate "2024.09.25"]
[EventType "swiss"]
[EventCountry "NET"]
[SourceTitle "playchess.com"]
[Source "ChessBase"]
[SourceQuality "1"]
[TimeControl "600+2"]

{[%evp 9,185,19,21,18,18,11,16,4,0,17,22,24,20,21,32,0,0,0,0,4,0,0,12,20,0,0,42,20,33,28,33,26,117,109,211,210,252,260,250,213,219,222,218,217,222,214,232,151,161,107,183,158,186,205,207,198,325,303,482,460,451,297,259,21,541,254,277,274,270,288,274,265,285,245,272,237,245,206,222,226,220,207,210,179,227,204,222,230,195,193,231,225,271,110,114,100,121,89,157,21,78,77,126,146,172,171,144,80,153,0,0,0,0,6,8,0,0,-8,0,0,0,0,0,0,0,0,12,12,583,583,583,12,576,576,576,576,576,576,29954,29955,29957,29957,29961,29963,29964,29966,29971,29973,29973,29972,29974,29971,29982,29982,29981,29982,29982,29983,29983,29984,29984,29985,29985,29984,29990,29991,29991,29991,29992,29983,29992,29993,29994,29993,29993,29994,29994,29995]} 1. e4 {[%emt 0:00:03]} e5 {[%emt 0:00:03]} 2. Bc4 {[%emt 0:00:06]} Nf6 {[%emt 0:00:02]} 3. d3 {[%emt 0:00:09]} c6 {[%emt 0:00:02]} 4. Nf3 {[%emt 0:00:02]} d5 {[%emt 0:00:01]} 5. Bb3 {[%emt 0:00:00]} a5 {[%emt 0:00:01] aiming for ...a4.} 6. a4 {[%emt 0:00:09]} Bb4+ {[%emt 0:00:03]} 7. c3 {[%emt 0:00:02]} Bd6 {[%emt 0:00:01]} 8. exd5 {[%emt 0:00:22] The position is equal.} cxd5 {[%emt 0:00:28]} 9. Bg5 {[%emt 0:00:02]} Be6 {[%emt 0:00:00]} 10. Na3 {[%emt 0:00:01]} Nc6 {[%emt 0:00:03]} 11. Nb5 {[%emt 0:00:01]} Bb8 {[%emt 0:00:03]} 12. Qe2 {[%emt 0:00:03]} O-O {[%emt 0:00:13]} 13. O-O-O {[%emt 0:00:03]} Re8 {[%emt 0:00:09]} 14. Rhe1 {[%emt 0:00:19]} h6 {[%emt 0:00:26]} 15. Bh4 {[%emt 0:00:05]} d4 {[%emt 0:00:05]} 16. Qc2 {[%emt 0:00:38]} Bxb3 {[%emt 0:02:03]} 17. Qxb3 {[%emt 0:00:02]} Ba7 {[%emt 0:00:03]} 18. Kb1 {[%emt 0:00:16]} dxc3 {[%emt 0:00:26]} 19. bxc3 {[%emt 0:00:01]} Bb6 {[%emt 0:00:01]} 20. Nd2 {[%emt 0:01:25] Strongly threatening Nc4.} Bc5 {[%emt 0:01:21]} (20... Qxd3+ $11 21. Qc2 Qxc2+ 22. Kxc2 Re6) 21. Bxf6 $1 $16 {[%emt 0:00:28]} Qxf6 {[%emt 0:00:22]} (21... gxf6 $16 {was necessary.} 22. Ne4 Be7) 22. Nc7 $18 {[%emt 0:00:06][%csl LRa8,LRb7,LRe8]} Qg6 {[%emt 0:00:04]} 23. Ne4 {[%emt 0:00:08]} (23. Qxb7 $2 Reb8 $19 (23... Qxd3+ $2 24. Ka1 $19) (23... Qxd3+ $2 24. Ka1 $19)) 23... Be7 {[%emt 0:00:04]} 24. Re3 {[%emt 0:00:13]} (24. Qxb7 $2 Reb8 $19) 24... Kh8 {[%emt 0:00:16]} 25. Nxa8 {[%emt 0:01:44]} (25. Qxb7 $2 Rab8 $19) 25... Rxa8 {[%emt 0:00:03]} 26. Rg3 {[%emt 0:00:21] Prevents f5.} (26. Qxb7 $2 Rb8 $19) 26... Qh5 {[%emt 0:00:03]} 27. Rf3 $1 {[%emt 0:00:00]} Rf8 {[%emt 0:00:35]} 28. Ng3 {[%emt 0:00:06]} (28. Qxb7 $2 Rb8 $19) 28... Qg6 {[%emt 0:00:04]} 29. Nf5 {[%emt 0:00:25]} (29. Qxb7 $2 Rb8 $19) ({Better is} 29. Re3 $18) 29... Bg5 {[%emt 0:00:02]} (29... Qxg2 $16 30. Qd5 Bf6) 30. g4 {[%emt 0:00:18]} (30. Qxb7 $2 Rb8 $19) 30... Bf4 {[%emt 0:00:09]} 31. h3 {[%emt 0:00:05]} (31. Qxb7 $2 Rb8 $19 (31... Bxh2 32. Ka1 $11) (31... Bxh2 32. Ka1 $11)) 31... Rb8 {[%emt 0:00:09]} 32. Kc2 {[%emt 0:00:10]} Na7 {[%emt 0:00:31]} (32... Rc8 $142 33. Kb1 (33. Qxb7 Rb8 $11) 33... Rb8) 33. Qd5 {[%emt 0:00:06]} f6 {[%emt 0:00:23]} (33... Nc6 {was called for.} 34. Qd6 Rd8 35. Qxg6 fxg6) 34. Rb1 {[%emt 0:00:05]} (34. Qxa5 Qf7 35. c4 (35. Qxa7 $2 Qa2#) 35... Nc6 $16) 34... Qe8 {[%emt 0:00:07]} 35. Qxa5 {[%emt 0:00:02]} Nc6 {[%emt 0:00:06][%cal Ba7c6,Bc6a5,Ba5b7,Bb7d6][%mdl 32]} 36. Qc7 {[%emt 0:00:10]} (36. Qb5 $18) 36... Qg8 $2 {[%emt 0:00:07][%mdl 8192]} (36... Nd4+ $1 $11 {and Black stays safe.} 37. Kb2 (37. cxd4 $2 Rc8 $19) 37... Nxf5 38. gxf5 Ra8) 37. Rb3 {[%emt 0:00:33]} (37. Rxb7 $2 {gets mated.} Qa2+) (37. c4 $142) 37... Rc8 {[%emt 0:00:06][%cal Bb8c8,Bc8c7,Bc7a7][%mdl 32]} 38. Qxb7 {[%emt 0:00:04]} Na5 {[%emt 0:01:04] [#]} 39. Ne7 $1 {[%emt 0:00:19][%csl LRc8,LRg8]} Nxb7 {[%emt 0:00:02]} 40. Nxg8 {[%emt 0:00:01]} Rc7 {[%emt 0:00:06] [#] Repels Ne7} 41. Nxf6 {[%emt 0:00:22]} gxf6 {[%emt 0:00:03] [#]} 42. d4 $1 {[%emt 0:00:01]} Kg7 {[%emt 0:00:07]} 43. Rb5 {[%emt 0:00:08]} Nd6 {[%emt 0:00:04]} 44. Rc5 {[%emt 0:00:01]} Ra7 {[%emt 0:00:02]} 45. a5 {[%emt 0:00:05]} Ne4 {[%emt 0:00:06]} 46. Rb5 {[%emt 0:00:02]} Ng5 {[%emt 0:00:03]} 47. Rd3 {[%emt 0:00:08]} e4 {[%emt 0:00:00]} 48. Rd1 {[%emt 0:00:01] Threatens to win with h4.} Nxh3 {[%emt 0:00:01]} 49. Rf1 {[%emt 0:00:09]} Kg6 {[%emt 0:00:12]} 50. c4 {[%emt 0:00:09]} Bc7 {[%emt 0:00:06]} 51. Ra1 {[%emt 0:00:18]} (51. c5 $18 {is more deadly.}) 51... Nxf2 {[%emt 0:00:16]} 52. a6 {[%emt 0:00:01][%cal Ba5a6,Ba6a7][%mdl 32]} Bf4 {[%emt 0:00:38]} 53. Rb7 {[%emt 0:00:03]} Ra8 {[%emt 0:00:01]} 54. Re7 {[%emt 0:00:02]} (54. a7 $16) 54... Nxg4 {[%emt 0:00:03]} (54... Kg5 $11 {keeps the balance.}) 55. Rxe4 $16 {[%emt 0:00:03]} Kf5 {[%emt 0:00:00]} (55... Kg5 $142) 56. Re7 {[%emt 0:00:09][%mdl 1024] White has strong compensation.} h5 {[%emt 0:00:01]} 57. a7 $1 {[%emt 0:00:04]} h4 {[%emt 0:00:00] [#]} 58. Rh7 {[%emt 0:00:03] Against h3} (58. Rh1 $142 $1 {[%cal Rh1h4]} Bg3 59. c5) 58... Bg3 {[%emt 0:00:05]} ({Black should play} 58... Nh6) 59. Kc3 $2 {[%emt 0:00:16] White is more active.} (59. c5 $16) 59... Kg6 $11 {[%emt 0:00:01]} 60. Rb7 {[%emt 0:00:06]} h3 {[%emt 0:00:00]} 61. c5 {[%emt 0:00:09]} h2 {[%emt 0:00:01]} 62. c6 {[%emt 0:00:01]} Nf2 {[%emt 0:00:10]} 63. c7 {[%emt 0:00:04] [#] The board is on fire.} Bxc7 $1 {[%emt 0:00:01]} 64. Rxc7 {[%emt 0:00:00]} h1=Q {[%emt 0:00:00] Dodges d5} 65. Rxh1 {[%emt 0:00:02]} Nxh1 {[%emt 0:00:00][%mdl 4096] Endgame. KRN-KR} 66. d5 {[%emt 0:00:02]} Ng3 {[%emt 0:00:01]} 67. Kd4 {[%emt 0:00:02]} Kf5 {[%emt 0:00:07]} 68. d6 {[%emt 0:00:19]} Ke6 $2 {[%emt 0:00:02][%mdl 8192] White stays focused until the end.} (68... Ne4 $1 $11 {and Black has nothing to worry.}) 69. d7 $18 {[%emt 0:00:01] Hoping for Rb7.} Nf5+ {[%emt 0:00:07] [#]} 70. Kd3 $2 {[%emt 0:00:12]} (70. Kc3 $1 $18 {And now Rc8 would win.} Nd6 71. Rc8 Nxc8 72. d8=Q (72. d8=B Rxa7 73. Kb4 Rb7+ 74. Kc3 Rb5 75. Kc4 Rd5 76. Bc7 Nd6+ 77. Kb4 Kd7 78. Ba5 f5 79. Bb6 Rb5+ 80. Kc3 Rxb6 81. Kd3 f4 82. Ke2 Rb3 83. Kd2 Ne4+ 84. Kc2 Rc3+ 85. Kb1 f3 86. Ka1 f2 87. Kb2 f1=Q 88. Ka2 Qb5 89. Ka1 Ra3#)) 70... Nd6 $2 {[%emt 0:00:01][%mdl 8192] [#] Prevents Rc8.} (70... Ne7 $11) 71. Rc8 $1 {[%emt 0:00:01][%mdl 512]} Rxa7 {[%emt 0:00:05]} 72. d8=Q {[%emt 0:00:01]} ({Weaker is} 72. d8=R Nxc8 73. Rxc8 Re7 $11) 72... Nxc8 {[%emt 0:00:01]} 73. Qxc8+ {[%emt 0:00:00] KQ-KR} Rd7+ {[%emt 0:00:01]} 74. Ke4 {[%emt 0:00:01] White mates.} Ke7 {[%emt 0:00:01]} 75. Qc5+ {[%emt 0:00:02]} Ke6 {[%emt 0:00:01]} 76. Qc4+ {[%emt 0:00:01]} Ke7 {[%emt 0:00:01]} 77. Kf5 {[%emt 0:00:01]} Kd6 {[%emt 0:00:07]} 78. Kxf6 {[%emt 0:00:01]} Rc7 {[%emt 0:00:01]} 79. Qd4+ {[%emt 0:00:01]} Kc6 {[%emt 0:00:01]} 80. Ke6 {[%emt 0:00:00]} Kb7 {[%emt 0:00:00]} 81. Qb4+ {[%emt 0:00:02]} Kc8 {[%emt 0:00:04]} 82. Qb5 {[%emt 0:00:05]} Rb7 {[%emt 0:00:01]} 83. Qc6+ {[%emt 0:00:03]} Kb8 {[%emt 0:00:01]} 84. Kd6 {[%emt 0:00:01]} Ka7 {[%emt 0:00:02]} 85. Qc5+ {[%emt 0:00:03]} Kb8 {[%emt 0:00:01]} 86. Qa5 {[%emt 0:00:02]} Ra7 {[%emt 0:00:08]} 87. Qb6+ {[%emt 0:00:03]} Rb7 {[%emt 0:00:01]} 88. Qd8+ {[%emt 0:00:01]} Ka7 {[%emt 0:00:00]} 89. Qa5+ {[%emt 0:00:01]} Kb8 {[%emt 0:00:01]} 90. Kc6 {[%emt 0:00:00]} Rh7 {[%emt 0:00:04]} 91. Qb4+ {[%emt 0:00:05]} Ka7 {[%emt 0:00:02]} 92. Qa3+ {[%emt 0:00:01]} Kb8 {[%emt 0:00:01]} 93. Qb3+ {[%emt 0:00:01] Weighted Error Value: White=0.40/Black=0.34.  Loses game:     	---       	Black=3      Missed win:     	White=3     	---        Mistake:       	White=5     	Black=8      Inaccurate:     	White=3     	Black=2      OK:         	White=28    	Black=28     Best:        	White=6     	Black=4      Strong:       	White=3     	---        Brilliant:      	White=1     	---} 1-0

[Event "CCT Julius Baer-D1-Place 2024"]
[Site "Online"]
[Date "2024.09.26"]
[Round "1"]
[White "Erigaisi Arjun"]
[Black "So, Wesley"]
[Result "1/2-1/2"]
[ECO "A13"]
[WhiteElo "2778"]
[BlackElo "2752"]
[Annotator "TA"]
[PlyCount "65"]
[EventDate "2024.09.25"]
[EventType "swiss"]
[EventCountry "NET"]
[SourceTitle "playchess.com"]
[Source "ChessBase"]
[SourceQuality "1"]
[TimeControl "600+2"]

{[%evp 13,65,-5,18,14,0,0,15,-11,-17,-18,-27,-31,-30,-51,-55,-91,-113,-171,-172,-158,-176,-160,-156,-156,-154,-135,-75,-89,-85,-182,-22,-36,0,0,27,-277,-293,-297,-257,-299,0,-278,0,-266,-262,-270,-193,-197,0,-273,0,-183,0,-232]} 1. Nf3 {[%emt 0:00:03]} d5 {[%emt 0:00:14]} 2. e3 {[%emt 0:00:04]} Nf6 {[%emt 0:00:02]} 3. c4 {[%emt 0:00:02]} e6 {[%emt 0:00:01]} 4. Nc3 {[%emt 0:00:04]} Be7 {[%emt 0:00:03]} 5. b3 {[%emt 0:00:05]} O-O {[%emt 0:00:04]} 6. Bb2 {[%emt 0:00:01]} c5 {[%emt 0:00:17]} 7. cxd5 {[%emt 0:00:04]} exd5 {[%emt 0:00:00]} 8. Rc1 {[%emt 0:00:02]} d4 {[%emt 0:00:13]} 9. Na4 {[%emt 0:00:02][%csl LRc5,LRd4]} dxe3 {[%emt 0:00:03]} 10. fxe3 {[%emt 0:00:09]} b6 {[%emt 0:00:02]} 11. Bb5 {[%emt 0:00:33] Wards off Nc6} Ba6 {[%emt 0:01:21]} 12. Bxa6 {[%emt 0:00:39]} Nxa6 {[%emt 0:00:00]} 13. O-O {[%emt 0:00:01]} Nb4 {[%emt 0:00:07]} 14. Ne5 {[%emt 0:00:01]} Nd7 {[%emt 0:01:04]} (14... Nxa2 $2 15. Nc6 Qe8 16. Nxe7+ Qxe7 17. Ra1 $18) 15. Nxf7 {[%emt 0:01:52]} Rxf7 $19 {[%emt 0:00:00]} 16. Rxf7 {[%emt 0:00:00]} Kxf7 {[%emt 0:00:00]} 17. a3 {[%emt 0:00:01]} Nd3 {[%emt 0:00:50]} 18. Qh5+ {[%emt 0:00:24]} Kf8 {[%emt 0:00:02]} 19. Rf1+ {[%emt 0:00:53]} Bf6 {[%emt 0:02:01]} ({Better is} 19... Nf6 {Hoping for ...Nxb2.} 20. Bxf6 Bxf6 21. Qxh7 Ne5) 20. Ba1 $17 {[%emt 0:01:55][%cal Oh5f5]} h6 {[%emt 0:01:02] Threatens to win with ...Qe8.} 21. Nc3 {[%emt 0:00:27]} (21. Qf5 $17 {was called for.} b5 22. Nc3 (22. Qxd3 $2 bxa4 23. bxa4 Kg8 $19)) 21... N3e5 $2 {[%emt 0:00:23]} (21... Qe8 $19 22. Qf5 N3e5) 22. Nd5 $11 {[%emt 0:00:40]} Nf7 {[%emt 0:00:08]} 23. e4 {[%emt 0:00:10]} Qe8 {[%emt 0:01:51] [#] aiming for ...Bxa1.} ({But not} 23... Kg8 $6 24. Nxf6+ Nxf6 25. Bxf6 gxf6 26. Qg6+ Kh8 (26... Kf8 $2 27. Rxf6 Qd4+ 28. Kf1 $18) 27. Qxf7 $16) (23... Rc8 $5 24. e5 Nfxe5 25. Nxf6 (25. Bxe5 Nxe5 26. Qxe5 Rc6 $11) 25... Nxf6 26. Qxe5 (26. Bxe5 Rc6 $11) 26... Qe7 $11) 24. Qf5 $2 {[%emt 0:00:29][%mdl 8192]} (24. Bxf6 $11 Nxf6 25. Nxf6 gxf6 26. Rxf6) 24... Bxa1 $19 {[%emt 0:00:10]} 25. Nc7 {[%emt 0:00:30]} Qe7 {[%emt 0:00:07]} 26. Nd5 {[%emt 0:00:24]} Qe8 {[%emt 0:00:05]} 27. Nc7 $1 {[%emt 0:00:01]} Qe7 {[%emt 0:00:09]} 28. Nd5 $1 {[%emt 0:00:01]} Bd4+ {[%emt 0:00:14]} 29. Kh1 {[%emt 0:00:01]} Qe8 {[%emt 0:00:01]} 30. Nc7 {[%emt 0:00:01]} Qe7 {[%emt 0:00:05]} (30... g6 $142 $1 {[%cal Rg6f5]} 31. Qd5 Nf6 32. Rxf6 Bxf6 33. Nxe8 Rxe8) 31. Nd5 $1 {[%emt 0:00:01]} Qe8 {[%emt 0:00:06]} 32. Nc7 {[%emt 0:00:01][%csl LRa8,LRe8]} Qe7 {[%emt 0:00:00]} (32... g6 $142 $1 {[%cal Rg6f5]} 33. Qd5 Nf6 34. Rxf6 Bxf6 35. Nxe8 Rxe8) 33. Nd5 $1 {[%emt 0:00:00] Weighted Error Value: White=0.25 (precise) /Black=0.88.  Loses game:     	White=1     	---        Mistake:       	White=2     	Black=4      Inaccurate:     	White=2     	Black=3      OK:         	White=5     	Black=6      Best:        	White=7     	Black=1      Strong:       	White=4     	---} 1/2-1/2

[Event "CCT Julius Baer-D1-Place 2024"]
[Site "Online"]
[Date "2024.09.26"]
[Round "1"]
[White "Nepomniachtchi, Ian"]
[Black "Martinez Alcantara, Jose Eduardo"]
[Result "1-0"]
[ECO "A29"]
[WhiteElo "2755"]
[BlackElo "2607"]
[Annotator "TA"]
[PlyCount "57"]
[EventDate "2024.09.25"]
[EventType "swiss"]
[EventCountry "NET"]
[SourceTitle "playchess.com"]
[Source "ChessBase"]
[SourceQuality "1"]
[TimeControl "600+2"]

{[%evp 10,57,17,6,25,20,25,9,33,21,24,23,21,12,14,21,54,58,75,48,34,27,27,24,48,17,15,14,12,7,26,30,289,300,296,289,291,286,297,297,291,302,302,287,295,287,281,276,404,402]} 1. c4 {[%emt 0:00:03]} e5 {[%emt 0:00:04]} 2. Nc3 {[%emt 0:00:01]} Nf6 {[%emt 0:00:02]} 3. Nf3 {[%emt 0:00:01]} Nc6 {[%emt 0:00:01]} 4. g3 {[%emt 0:00:01]} Bc5 {[%emt 0:00:00]} 5. Bg2 {[%emt 0:00:02]} d6 {[%emt 0:00:01]} 6. O-O {[%emt 0:00:01]} a6 {[%emt 0:00:01]} 7. e3 {[%emt 0:00:03]} Ba7 {[%emt 0:00:01]} 8. b3 {[%emt 0:00:02]} O-O {[%emt 0:00:01] The position is equal.} 9. Bb2 {[%emt 0:00:01]} Bf5 {[%emt 0:00:06]} 10. d4 {[%emt 0:00:46]} exd4 {[%emt 0:00:05]} 11. Nxd4 {[%emt 0:00:03]} Nxd4 {[%emt 0:00:02]} 12. exd4 {[%emt 0:00:00]} c6 {[%emt 0:00:01]} 13. d5 {[%emt 0:00:03]} Rc8 {[%emt 0:00:37]} 14. dxc6 {[%emt 0:00:16]} bxc6 {[%emt 0:00:00][%cal Bb7c6,Bc6d5,Bd5d4,Bd4e3][%mdl 32]} 15. Qd2 {[%emt 0:00:02]} d5 {[%emt 0:00:27]} 16. Qf4 {[%emt 0:03:36]} Bg6 {[%emt 0:00:02]} 17. cxd5 {[%emt 0:00:30]} cxd5 {[%emt 0:00:06]} 18. Rad1 {[%emt 0:00:01]} d4 {[%emt 0:00:12]} 19. Ne4 {[%emt 0:00:02]} Nd5 {[%emt 0:02:30]} 20. Qd2 {[%emt 0:00:25]} Ne3 $2 {[%emt 0:00:01][%mdl 8192] This move loses the game for Black.} 21. fxe3 $18 {[%emt 0:00:10]} dxe3 {[%emt 0:00:00] [#]} 22. Qe2 {[%emt 0:00:09][%csl LRa6,LRd8]} Qe7 {[%emt 0:00:26] [#] Hoping for ...Rfd8.} 23. Bd4 $1 {[%emt 0:00:16]} Bxe4 {[%emt 0:00:56]} 24. Bxe4 {[%emt 0:00:08]} Qxe4 {[%emt 0:00:09]} 25. Bxa7 {[%emt 0:00:01]} Rc2 {[%emt 0:00:00]} 26. Qf3 {[%emt 0:00:01]} (26. Qxa6 $2 Qg2#) 26... Qxf3 {[%emt 0:00:22]} 27. Rxf3 {[%emt 0:00:00]} e2 {[%emt 0:00:00]} 28. Re1 {[%emt 0:00:02]} Re8 {[%emt 0:00:01]} (28... Ra8 $142 29. Bf2 Rxa2) 29. a4 {[%emt 0:00:06] Weighted Error Value: White=0.06 (flawless) /Black=0.33.  Loses game:     	---       	Black=1      Mistake:       	---       	Black=1      Inaccurate:     	White=2     	Black=1      OK:         	White=11    	Black=7      Best:        	White=3     	Black=1} ({Don't do} 29. Kf2 Rxa2 30. Re3 Rxe3 31. Bxe3 (31. Kxe3 Rb2 $14) 31... Rb2 32. Rxe2 Rxb3 $18) 1-0

[Event "CCT Julius Baer-D1-Place 2024"]
[Site "Online"]
[Date "2024.09.26"]
[Round "1"]
[White "So, Wesley"]
[Black "Erigaisi Arjun"]
[Result "0-1"]
[ECO "C54"]
[WhiteElo "2752"]
[BlackElo "2778"]
[Annotator "TA"]
[PlyCount "80"]
[EventDate "2024.09.25"]
[EventType "swiss"]
[EventCountry "NET"]
[SourceTitle "playchess.com"]
[Source "ChessBase"]
[SourceQuality "1"]
[TimeControl "600+2"]

{[%evp 12,80,21,28,29,29,37,28,32,19,52,48,58,42,46,55,67,63,69,35,72,64,62,58,58,66,61,56,53,52,63,59,60,72,137,80,106,108,107,90,118,128,120,118,123,93,106,91,92,94,118,25,10,0,0,-924,-888,-985,-942,-890,-890,-890,-884,-1168,-1054,-29992,-29993,-29993,-29994,-29998,-29999]} 1. e4 {[%emt 0:00:10]} e5 {[%emt 0:00:05]} 2. Nf3 {[%emt 0:00:04]} Nc6 {[%emt 0:00:01]} 3. Bc4 {[%emt 0:00:00]} Bc5 {[%emt 0:00:02]} 4. c3 {[%emt 0:00:06]} Nf6 {[%emt 0:00:01]} 5. d3 {[%emt 0:00:01][%cal Bd2d3,Bd3d4,Bd4d5][%mdl 32]} d6 {[%emt 0:00:02]} 6. O-O {[%emt 0:00:01]} O-O {[%emt 0:00:02]} 7. Re1 {[%emt 0:00:04]} Bb6 {[%emt 0:00:03]} 8. Bg5 {[%emt 0:00:22]} Ne7 {[%emt 0:00:19]} 9. Bxf6 {[%emt 0:00:27]} gxf6 {[%emt 0:00:00] White has an edge.} 10. d4 {[%emt 0:00:02]} c6 {[%emt 0:00:05]} 11. Nbd2 {[%emt 0:00:09]} Ng6 {[%emt 0:00:05]} 12. Bb3 {[%emt 0:02:08]} Kh8 {[%emt 0:01:12]} 13. Nc4 {[%emt 0:00:08]} Bg4 {[%emt 0:00:10]} 14. Ne3 {[%emt 0:00:13]} Be6 {[%emt 0:01:11]} 15. d5 {[%emt 0:00:31]} Bc8 {[%emt 0:01:03]} 16. Qd2 {[%emt 0:00:31]} Bxe3 {[%emt 0:00:18]} 17. fxe3 {[%emt 0:00:13]} f5 {[%emt 0:00:34]} 18. exf5 {[%emt 0:00:13]} Bxf5 {[%emt 0:00:00]} 19. e4 {[%emt 0:00:35]} Bg4 {[%emt 0:00:02]} 20. dxc6 {[%emt 0:00:29]} Bxf3 {[%emt 0:00:43]} 21. cxb7 {[%emt 0:00:02]} ({Of course not} 21. gxf3 bxc6 22. Rad1 f5 23. exf5 (23. Qxd6 Qb6+ 24. Kg2 Rad8 $15) 23... Nh4 $15) 21... Rb8 {[%emt 0:00:26][%cal Og6h4,Ba8b8,Bb8b7,Bb7g7][%mdl 32] [#] ...Nh4! would now be deadly.} 22. gxf3 {[%emt 0:00:01]} f5 {[%emt 0:00:12]} (22... Rxb7 $142 23. Rad1 Rb6) 23. Kh1 {[%emt 0:00:13]} (23. Bd5 $142) 23... Rxb7 {[%emt 0:00:05]} 24. exf5 {[%emt 0:00:32]} Rxf5 {[%emt 0:00:00][%cal Od8f6]} 25. Rad1 {[%emt 0:00:16]} Rf6 {[%emt 0:00:07][%cal Od8f8]} 26. Bd5 {[%emt 0:00:17]} Rg7 {[%emt 0:00:02] Black is weak on the light squares} 27. Rg1 {[%emt 0:00:01]} Qf8 {[%emt 0:00:08]} 28. c4 {[%emt 0:00:17]} Nf4 {[%emt 0:00:24]} 29. Be4 {[%emt 0:00:14]} Nh3 {[%emt 0:00:50]} 30. Rxg7 {[%emt 0:00:06]} Qxg7 {[%emt 0:00:00]} 31. Qg2 {[%emt 0:00:07]} (31. Qe1 $16) 31... Qh6 $1 $11 {[%emt 0:00:07]} 32. b4 {[%emt 0:00:16]} Rf7 $40 {[%emt 0:00:11][%mdl 128] aiming for ...Rg7. Black attacks.} 33. c5 $2 {[%emt 0:00:20][%mdl 8192] [#]} (33. Qd2 $11 Rg7 34. f4 (34. Qxh6 $2 Nf2#)) 33... Rg7 $1 $19 {[%emt 0:00:04]} 34. Qf1 {[%emt 0:00:29]} Qh4 {[%emt 0:00:22]} 35. Rd2 {[%emt 0:00:09] Wards off Nf2+} Rg1+ {[%emt 0:00:14]} 36. Qxg1 {[%emt 0:00:04]} Nxg1 {[%emt 0:00:00]} 37. Rd1 {[%emt 0:00:49] Against Qe1} Nh3 {[%emt 0:00:03] ( -> ...Nf2+)} 38. c6 {[%emt 0:00:14]} Nf2+ {[%emt 0:00:05] Black mates.} 39. Kg2 {[%emt 0:00:03]} Nxd1 {[%emt 0:00:00]} 40. c7 {[%emt 0:00:00]} Ne3+ {[%emt 0:00:03] Weighted Error Value: White=0.58/Black=0.08 (flawless) .  Loses game:     	White=1     	---        Mistake:       	White=2     	Black=1      Inaccurate:     	White=1     	Black=4      OK:         	White=9     	Black=8      Best:        	White=4     	Black=1      Strong:       	---       	Black=2} 0-1